fUST/lending_fUST_20250217
["ID","MTS","AMOUNT","RATE_DAILY","PERIOD"]
[353333429,1739775039454,-806.39,0.00014767,2]
[353333430,1739775039464,-806.39,0.00014849,2]
[353333431,1739775039473,-806.39,0.00014931,2]
[353333432,1739775039483,-832.7860832,0.00015,3]
[353333433,1739775039493,-806.39,0.00015013,2]
[353333434,1739775039503,-806.42293784,0.00015096,2]
[353333435,1739775039513,-396.0,0.00015137,2]
[353333436,1739775039523,-341.0,0.0001524,2]
[353333437,1739775039532,-185.0,0.00016,7]
[353333438,1739775039543,-185.0,0.00016,4]
[353333439,1739775039553,-3000.0,0.00016,2]
[353333440,1739775039562,-1000.0,0.00016,16]
[353333441,1739775039572,-500.0,0.00016009,2]
[353333442,1739775039582,-187.20107913,0.00016009,2]
[353333443,1739775039591,-535.24747889,0.00016009,2]
[353333444,1739775039601,-353.52973595,0.00016009,2]
[353333445,1739775039610,-500.0,0.00016009,2]
[353333446,1739775039620,-547.38755239,0.00016009,2]
[353333447,1739775039630,-11954.18523652,0.0001601,5]
[353333448,1739775039642,-1022.52480664,0.0001601,5]
[353333484,1739775043720,-188.4075016,0.00012275,2]
[353333485,1739775043730,-9358.4325014,0.0001601,5]
[353333500,1739775943137,-745.67204432,0.00011506,2]
[353333501,1739775943158,-745.67204432,0.00011622,2]
[353333502,1739775943186,-69.33167503,0.00011978,2]
[353333503,1739776026112,-423.4597435,0.00011277,2]
[353333504,1739776026135,-423.4597435,0.00011391,2]
[353333505,1739776026157,-426.34036929,0.00011978,2]
[353333506,1739776026178,-4943.53117231,0.00012,3]
[353333507,1739776026199,-250.0,0.00012221,2]
[353333508,1739776026222,-300.0,0.00012446,2]
[353333509,1739776026370,-3012.54065629,0.00012447,2]
[353333510,1739776036164,-1854.43245466,0.00012447,2]
[353333511,1739776043074,-273.90230842,0.00012323,2]
[353333512,1739776052099,-2284.27663719,0.00012323,2]
[353333513,1739776052123,-2571.72442183,0.00012447,2]
[353333514,1739776052149,-500.0,0.00013203,2]
[353333515,1739776052171,-500.0,0.00013203,2]
[353333516,1739776052195,-500.0,0.00013203,2]
[353333517,1739776052220,-500.0,0.00013203,2]
[353333518,1739776052243,-500.0,0.00013203,2]
[353333519,1739776052266,-381.68559945,0.00013203,2]
[353333522,1739776148102,-2123.42992452,0.00012447,2]
[353333523,1739776172105,-5315.26760826,0.00012447,2]
[353333524,1739776212726,904.8080376,0.00012456,2]
[353333549,1739776233079,-300.0,0.00013202,2]
[353333550,1739776233089,-500.0,0.00013203,2]
[353333551,1739776233099,-201.84784655,0.00013203,2]
[353333552,1739776233141,-298.15215345,0.00013203,2]
[353333553,1739776233151,-500.0,0.00013203,2]
[353333554,1739776233161,-500.0,0.00013203,2]
[353333555,1739776233171,-500.0,0.00013203,2]
[353333556,1739776233181,-500.0,0.00013203,2]
[353333557,1739776233191,-564.74,0.00013203,2]
[353333558,1739776233201,-500.0,0.00013203,2]
[353333559,1739776233211,-314.04312545,0.00013203,2]
[353333560,1739776233221,-500.0,0.00013203,2]
[353333561,1739776233231,-500.0,0.00013203,2]
[353333562,1739776233241,-500.0,0.00013203,2]
[353333563,1739776233251,-500.0,0.00013203,2]
[353333564,1739776233261,-500.0,0.00013203,2]
[353333565,1739776233270,-500.0,0.00013203,2]
[353333566,1739776233280,-465.67554488,0.00013203,2]
[353333580,1739776238597,-34.32445512,0.00013203,2]
[353333582,1739776238608,-500.0,0.00013203,2]
[353333584,1739776238618,-500.0,0.00013203,2]
[353333585,1739776238628,-500.0,0.00013203,2]
[353333586,1739776238638,-618.31440055,0.00013203,2]
[353333587,1739776238648,-500.0,0.00013203,2]
[353333588,1739776238658,-222.894,0.00013204,2]
[353333589,1739776238668,-500.0,0.00013204,2]
[353333590,1739776238678,-500.0,0.00013204,2]
[353333591,1739776238687,-502.10119705,0.00013204,2]
[353333592,1739776238697,-500.0,0.00013204,2]
[353333593,1739776238707,-370.69238274,0.00013204,2]
[353333594,1739776238717,-501.82798967,0.00013204,2]
[353333595,1739776238726,-608.69848931,0.00013204,2]
[353333596,1739776238735,-500.0,0.00013204,2]
[353333597,1739776238745,-500.83421731,0.00013204,2]
[353333598,1739776238755,-500.0,0.00013204,2]
[353333599,1739776238764,-500.0,0.00013204,2]
[353333600,1739776238773,-500.0,0.00013204,2]
[353333601,1739776238783,-500.0,0.00013204,2]
[353333602,1739776238793,-500.0,0.00013204,2]
[353333603,1739776238803,-500.0,0.00013204,2]
[353333604,1739776238812,-500.0,0.00013204,2]
[353333605,1739776238821,-500.0,0.00013204,2]
[353333607,1739776238832,-500.0,0.00013204,2]
[353333609,1739776238841,-500.0,0.00013204,2]
[353333611,1739776238850,-500.0,0.00013204,2]
[353333613,1739776238859,-500.0,0.00013204,2]
[353333615,1739776238869,-500.0,0.00013204,2]
[353333617,1739776238878,-502.20019724,0.00013204,2]
[353333619,1739776238888,-500.0,0.00013204,2]
[353333621,1739776238897,-500.0,0.00013204,2]
[353333623,1739776238906,-500.0,0.00013204,2]
[353333625,1739776238916,-500.85511461,0.00013204,2]
[353333626,1739776238925,-500.0,0.00013204,2]
[353333627,1739776238934,-500.0,0.00013204,2]
[353333628,1739776238943,-500.0,0.00013204,2]
[353333630,1739776238953,-500.0,0.00013204,2]
[353333632,1739776238962,-222.59237417,0.00013204,2]
[353333634,1739776238976,-277.40762583,0.00013204,2]
[353333635,1739776238986,-500.0,0.00013204,2]
[353333636,1739776238995,-500.0,0.00013204,2]
[353333637,1739776239005,-500.0,0.00013204,2]
[353333638,1739776239014,-500.0,0.00013204,2]
[353333639,1739776239024,-412.59237417,0.00013204,2]
[353333640,1739776239035,-87.40762583,0.00013204,2]
[353333641,1739776239045,-500.0,0.00013204,2]
[353333642,1739776239054,-500.0,0.00013204,2]
[353333643,1739776239064,-351.03017096,0.00013204,2]
[353333644,1739776239076,-104.49376684,0.00013204,2]
[353333645,1739776239086,-370.51967649,0.00013204,2]
[353333646,1739776239094,-499.57115317,0.00013204,2]
[353333647,1739776239480,-0.42884683,0.00013204,2]
[353333648,1739776239489,-635.34721614,0.00013204,2]
[353333649,1739776239498,-500.0,0.00013204,2]
[353333650,1739776239508,-500.0,0.00013204,2]
[353333651,1739776239517,-535.19,0.00013204,2]
[353333652,1739776239526,-540.24194059,0.00013204,2]
[353333653,1739776239536,-500.0,0.00013204,2]
[353333654,1739776239546,-500.0,0.00013204,2]
[353333655,1739776239555,-500.0,0.00013204,2]
[353333656,1739776239564,-500.0,0.00013204,2]
[353333657,1739776239574,-500.0,0.00013204,2]
[353333658,1739776239583,-500.0,0.00013204,2]
[353333659,1739776239594,-515.6,0.00013204,2]
[353333660,1739776239603,-500.0,0.00013204,2]
[353333661,1739776239613,-500.0,0.00013204,2]
[353333662,1739776239622,-500.0,0.00013204,2]
[353333663,1739776239632,-500.0,0.00013204,2]
[353333664,1739776239641,-518.94,0.00013204,2]
[353333665,1739776239651,-500.0,0.00013204,2]
[353333666,1739776239660,-500.0,0.00013204,2]
[353333667,1739776239670,-504.89213378,0.00013204,2]
[353333668,1739776239679,-500.0,0.00013204,2]
[353333669,1739776239688,-504.72208563,0.00013204,2]
[353333670,1739776239698,-501.65877634,0.00013204,2]
[353333671,1739776239707,-500.0,0.00013204,2]
[353333672,1739776239716,-500.0,0.00013204,2]
[353333673,1739776239725,-505.9017135,0.00013204,2]
[353333674,1739776239735,-613.45394911,0.00013204,2]
[353333675,1739776239744,-500.0,0.00013204,2]
[353333676,1739776239754,-500.0,0.00013204,2]
[353333677,1739776239763,-500.0,0.00013204,2]
[353333678,1739776239772,-500.0,0.00013204,2]
[353333679,1739776239781,-500.0,0.00013204,2]
[353333680,1739776239790,-500.0,0.00013204,2]
[353333681,1739776239799,-500.0,0.00013204,2]
[353333682,1739776239808,-504.25016955,0.00013204,2]
[353333683,1739776239819,-506.15780126,0.00013204,2]
[353333684,1739776239828,-510.98762252,0.00013204,2]
[353333685,1739776239837,-503.36170499,0.00013205,2]
[353333686,1739776239847,-502.68863654,0.00013205,2]
[353333687,1739776239857,-506.52916729,0.00013205,2]
[353333688,1739776239866,-503.47851627,0.00013205,2]
[353333689,1739776239876,-503.65201855,0.00013205,2]
[353333690,1739776239886,-503.48833668,0.00013205,2]
[353333691,1739776239896,-503.44889321,0.00013205,2]
[353333692,1739776239906,-504.15553754,0.00013205,2]
[353333693,1739776239916,-322.78597805,0.00013205,2]
[353333694,1739776239926,-510.653006,0.00013205,2]
[353333695,1739776239936,-500.0,0.00013286,2]
[353333696,1739776239946,-500.0,0.00013286,2]
[353333697,1739776239957,-583.96,0.00013286,2]
[353333698,1739776239967,-500.0,0.00013286,2]
[353333699,1739776239976,-112.7749912,0.00013286,2]
[353333700,1739776239989,-387.2250088,0.00013286,2]
[353333701,1739776239999,-500.0,0.00013286,2]
[353333702,1739776240008,-506.96710252,0.00013286,2]
[353333703,1739776240018,-82.75288868,0.00013286,2]
[353333704,1739776240031,-417.24711132,0.00013286,2]
[353333705,1739776240040,-500.0,0.00013286,2]
[353333706,1739776240050,-500.0,0.00013286,2]
[353333707,1739776240059,-244.54579175,0.00013286,2]
[353333708,1739776240068,-162.44,0.00013286,2]
[353333709,1739776240078,-500.0,0.00013286,2]
[353333710,1739776240088,-500.0,0.00013286,2]
[353333711,1739776240097,-500.0,0.00013286,2]
[353333712,1739776240107,-500.0,0.00013286,2]
[353333713,1739776240116,-500.0,0.00013286,2]
[353333714,1739776240126,-171.19,0.00013286,2]
[353333715,1739776240135,-340.86,0.00013286,2]
[353333716,1739776240144,-500.0,0.00013286,2]
[353333717,1739776240154,-236.3,0.00013286,2]
[353333718,1739776240163,-414.4,0.00013286,2]
[353333719,1739776240173,-280.75,0.00013286,2]
[353333720,1739776240184,-500.0,0.00013286,2]
[353333721,1739776240193,-323.15,0.00013286,2]
[353333722,1739776240202,-500.0,0.00013286,2]
[353333723,1739776240213,-500.0,0.00013286,2]
[353333724,1739776240223,-199.6,0.00013286,2]
[353333725,1739776240232,-500.0,0.00013286,2]
[353333726,1739776240241,-500.0,0.00013286,2]
[353333727,1739776240250,-500.0,0.00013286,2]
[353333728,1739776240260,-209.35,0.00013286,2]
[353333729,1739776240269,-500.0,0.00013286,2]
[353333730,1739776240278,-593.97,0.00013286,2]
[353333731,1739776240288,-267.72,0.00013286,2]
[353333732,1739776240297,-500.0,0.00013286,2]
[353333733,1739776240307,-500.0,0.00013368,2]
[353333734,1739776240316,-500.0,0.00013368,2]
[353333735,1739776240326,-500.0,0.00013368,2]
[353333736,1739776240335,-500.0,0.00013368,2]
[353333737,1739776240345,-406.91,0.00013368,2]
[353333738,1739776240354,-500.0,0.00013368,2]
[353333739,1739776240364,-214.39,0.00013369,2]
[353333740,1739776240373,-500.0,0.00013369,2]
[353333741,1739776240383,-500.0,0.00013369,2]
[353333742,1739776240392,-500.0,0.00013369,2]
[353333743,1739776240402,-500.0,0.00013369,2]
[353333744,1739776240411,-500.0,0.00013369,2]
[353333745,1739776240421,-500.0,0.00013369,2]
[353333746,1739776240431,-500.0,0.00013369,2]
[353333747,1739776240441,-500.0,0.000134,2]
[353333748,1739776240450,-500.0,0.00013422,2]
[353333749,1739776240460,-157.70080108,0.00013448,2]
[353333751,1739776240474,-500.0,0.0001345,2]
[353333753,1739776240484,-500.0,0.0001345,2]
[353333754,1739776240494,-500.0,0.0001345,2]
[353333755,1739776240503,-554.68,0.0001345,2]
[353333756,1739776240514,-500.0,0.0001345,2]
[353333757,1739776240524,-500.0,0.00013451,2]
[353333758,1739776240534,-251.26,0.00013451,2]
[353333759,1739776240546,-167.55,0.00013451,2]
[353333760,1739776240555,-231.51,0.00013451,2]
[353333761,1739776240565,-500.0,0.00013451,2]
[353333762,1739776240575,-500.0,0.00013451,2]
[353333763,1739776240585,-500.0,0.00013451,2]
[353333764,1739776240596,-500.0,0.00013532,2]
[353333765,1739776240605,-500.0,0.00013532,2]
[353333768,1739776240704,-500.0,0.00013532,2]
[353333769,1739776240715,-270.53,0.00013532,2]
[353333770,1739776240726,-187.78,0.00013533,2]
[353333771,1739776240735,-336.77,0.00013533,2]
[353333772,1739776240746,-500.0,0.00013533,2]
[353333773,1739776240756,-406.6,0.00013533,2]
[353333774,1739776240765,-500.0,0.00013552,2]
[353333775,1739776240775,-500.0,0.00013614,2]
[353333777,1739776240784,-500.0,0.00013614,2]
[353333778,1739776240794,-500.0,0.00013614,2]
[353333779,1739776240803,-500.0,0.00013615,2]
[353333780,1739776240813,-500.0,0.00013696,2]
[353333781,1739776240822,-500.0,0.00013696,2]
[353333782,1739776240832,-533.98,0.00013696,2]
[353333783,1739776240841,-500.0,0.00013697,2]
[353333784,1739776240851,-500.0,0.00013779,2]
[353333785,1739776240860,-500.0,0.00013779,2]
[353333786,1739776240870,-500.0,0.00013779,2]
[353333787,1739776240879,-500.0,0.00013861,2]
[353333788,1739776240888,-500.0,0.00013861,2]
[353333789,1739776240898,-500.0,0.00013862,2]
[353333790,1739776240907,-500.0,0.00013934,2]
[353333791,1739776240916,-500.0,0.00013934,2]
[353333792,1739776240926,-175.24668509,0.00013934,2]
[353333793,1739776240935,-500.0,0.00013934,2]
[353333794,1739776240945,-408.33300469,0.00013934,2]
[353333795,1739776240954,-300.31362874,0.00013934,2]
[353333796,1739776240964,-500.0,0.00013934,2]
[353333797,1739776240975,-500.0,0.00013934,2]
[353333798,1739776240985,-500.0,0.00013934,2]
[353333799,1739776240995,-500.0,0.00013934,2]
[353333800,1739776241005,-500.0,0.00013934,2]
[353333801,1739776241014,-500.0,0.00013934,2]
[353333802,1739776241024,-354.60691278,0.00013934,2]
[353333803,1739776241034,-500.0,0.00013934,2]
[353333804,1739776241044,-500.0,0.00013934,2]
[353333805,1739776241054,-503.15422804,0.00013935,2]
[353333806,1739776241063,-503.37444651,0.00013935,2]
[353333807,1739776241073,-503.09169201,0.00013935,2]
[353333808,1739776241083,-500.0,0.00013935,2]
[353333809,1739776241092,-500.0,0.00013935,2]
[353333810,1739776241103,-504.22261271,0.00013935,2]
[353333811,1739776241113,-500.0,0.00013943,2]
[353333812,1739776241123,-500.0,0.00013943,2]
[353333813,1739776241132,-500.0,0.00013944,2]
[353333814,1739776241142,-201.17844729,0.00014017,2]
[353333815,1739776241152,-571.31399231,0.00014017,2]
[353333816,1739776241161,-500.0,0.00014025,2]
[353333817,1739776241171,-446.25,0.00014025,2]
[353333818,1739776241180,-500.0,0.00014026,2]
[353333819,1739776241189,-500.0,0.00014107,2]
[353333820,1739776241198,-500.0,0.00014108,2]
[353333821,1739776241207,-500.0,0.0001419,2]
[353333822,1739776241218,-500.0,0.0001419,2]
[353333823,1739776241227,-266.23,0.00014272,2]
[353333824,1739776241237,-500.0,0.00014273,2]
[353333825,1739776241247,-500.0,0.00014355,2]
[353333826,1739776241256,-500.0,0.00014437,2]
[353333827,1739776241266,-500.0,0.00014519,2]
[353333828,1739776241276,-500.0,0.00014601,2]
[353333829,1739776241285,-500.0,0.00014684,2]
[353333830,1739776241295,-500.0,0.00014766,2]
[353333831,1739776241304,-291.68,0.000148,2]
[353333832,1739776241314,-151.0,0.000148,2]
[353333833,1739776241323,-1189.06866292,0.000148,2]
[353333834,1739776241333,-500.0,0.00014848,2]
[353333835,1739776241343,-500.0,0.00014899,2]
[353333836,1739776241352,-542.17798794,0.00014899,2]
[353333837,1739776241362,-31421.44212962,0.000149,5]
[353333838,1739776241371,-1808.01819211,0.000149,5]
[353333839,1739776241381,-151.0,0.000149,2]
[353333840,1739776241390,-104876.81966504,0.000149,2]
[353333858,1739776243853,-7491.96429908,0.000149,2]
[353333859,1739776243865,-27539.822337,0.000149,2]
[353333860,1739776243877,-121441.32973688,0.000149,2]
[353333861,1739776243886,-500.0,0.0001493,2]
[353333862,1739776243896,-558.15105015,0.00015012,2]
[353333863,1739776243906,-342.0,0.0001516,2]
[353333864,1739776243916,-150.0,0.00015248,2]
[353333865,1739776243926,-540.463648,0.00015848,2]
[353333867,1739776243935,-151.0,0.0001588,2]
[353333868,1739776243944,-130674.968019,0.0001589,2]
[353333869,1739776243953,-594.53433146,0.0001589,2]
[353333870,1739776243963,-13555.0,0.000159,5]
[353333871,1739776243973,-3000.0,0.00016,2]
[353333872,1739776243982,-212.0,0.00016,7]
[353333873,1739776243991,-212.0,0.00016,14]
[353333874,1739776244001,-212.73968215,0.00016,10]
[353333875,1739776244010,-3000.0,0.0001601,2]
[353333876,1739776244021,-3832.814215,0.0001602,2]
[353333877,1739776244032,-151.0,0.0001602,2]
[353333878,1739776244042,-816.57,0.00016164,2]
[353333879,1739776244051,-342.0,0.0001626,2]
[353333880,1739776244061,-157.69426535,0.00016265,2]
[353333881,1739776244071,-157.69426535,0.00016265,2]
[353333882,1739776244080,-157.69426535,0.00016265,2]
[353333883,1739776244089,-157.69,0.00016265,2]
[353333884,1739776244098,-163.53479369,0.00016265,2]
[353333885,1739776244107,-163.53479369,0.00016265,2]
[353333886,1739776244117,-163.53479369,0.00016265,2]
[353333887,1739776244126,-163.53479369,0.00016265,2]
[353333888,1739776244135,-163.53479369,0.00016265,2]
[353333889,1739776244145,-163.53479369,0.00016265,2]
[353333890,1739776244154,-163.53479369,0.00016265,2]
[353333891,1739776244163,-163.53479369,0.00016265,2]
[353333892,1739776244172,-163.53,0.00016265,2]
[353333893,1739776244181,-204.21,0.00016271,2]
[353333894,1739776244190,-158.83409661,0.00016271,2]
[353333895,1739776244199,-158.83409661,0.00016271,2]
[353333896,1739776244208,-158.83,0.00016271,2]
[353333897,1739776244217,-151.0,0.00016278,2]
[353333898,1739776244227,-55685.51888983,0.0001628,2]
[353333899,1739776244238,-984.7674761,0.0001628,2]
[353333903,1739776246679,-1095.09195005,0.0001628,2]
[353333907,1739776289555,400.0,0.00010685,2]
[353333910,1739776851942,1351.15,8e-05,2]
[353333912,1739777146135,-157.23537154,7.84e-05,2]
[353333913,1739777146157,-140.34403922,7.919e-05,2]
[353333918,1739777226084,-159.91677404,7.84e-05,2]
[353333919,1739777226106,-37.46902659,7.919e-05,2]
[353333920,1739777234082,-122.44774745,7.919e-05,2]
[353333921,1739777234107,-300.0,7.999e-05,2]
[353333922,1739777234128,-959.62939829,8e-05,2]
[353333923,1739777238098,-1698.28104509,8e-05,2]
[353333924,1739777241115,-7427.33955662,8e-05,2]
[353333925,1739777241186,-500.0,0.00012622,2]
[353333926,1739777241241,-643.22,0.00012622,2]
[353333927,1739777241294,-500.0,0.00012622,2]
[353333928,1739777241346,-500.0,0.00012622,2]
[353333929,1739777241397,-500.0,0.00012622,2]
[353333930,1739777241431,-537.36027008,0.00012622,2]
[353333931,1739777246096,-3.84972992,0.00012622,2]
[353333932,1739777246123,-553.16,0.00012622,2]
[353333933,1739777246151,-500.0,0.00012622,2]
[353333934,1739777246175,-66.86995271,0.00012622,2]
[353333935,1739777249138,-433.13004729,0.00012622,2]
[353333936,1739777249162,-500.0,0.00012622,2]
[353333937,1739777249185,-450.34792527,0.00012622,2]
[353333939,1739777313163,1032.40704363,0.00016388,90]
[353333940,1739777346239,-1294.31318324,0.00012114,2]
[353333941,1739777363082,-440.91164266,0.00012114,2]
[353333973,1739777431960,-314.54692683,0.00012621,2]
[353333974,1739777431972,-122.61689502,0.00012621,2]
[353333975,1739777431981,-192.8301074,0.00012622,2]
[353333976,1739777432086,-313.69417664,0.00012622,2]
[353333977,1739777432096,-500.0,0.00012622,2]
[353333978,1739777432107,-500.0,0.00012622,2]
[353333980,1739777432119,-205.63,0.00012622,2]
[353333982,1739777432130,-500.0,0.00012622,2]
[353333984,1739777432139,-359.76,0.00012622,2]
[353333986,1739777432149,-500.0,0.00012622,2]
[353333988,1739777432158,-500.0,0.00012622,2]
[353333989,1739777432167,-500.0,0.00012622,2]
[353333992,1739777432177,-500.0,0.00012622,2]
[353333994,1739777432187,-500.0,0.00012622,2]
[353333995,1739777432196,-530.11,0.00012622,2]
[353333997,1739777432206,-500.0,0.00012622,2]
[353334000,1739777432216,-123.44529925,0.00012622,2]
[353334002,1739777432228,-376.55470075,0.00012622,2]
[353334004,1739777432238,-500.0,0.00012622,2]
[353334006,1739777432247,-129.12499365,0.00012622,2]
[353334008,1739777432259,-370.87500635,0.00012622,2]
[353334010,1739777432269,-305.12475772,0.00012622,2]
[353334011,1739777432279,-14384.30408069,0.00012623,2]
[353334012,1739777432290,-4760.41562752,0.00012623,2]
[353334023,1739777437821,-5755.28029179,0.00012623,2]
[353334024,1739777437831,-67.39173661,0.00012704,2]
[353334026,1739777438434,-432.60826339,0.00012704,2]
[353334027,1739777438446,-500.0,0.00012704,2]
[353334028,1739777438458,-500.0,0.00012704,2]
[353334029,1739777438470,-500.0,0.00012704,2]
[353334030,1739777438481,-160.96,0.00012704,2]
[353334031,1739777438493,-500.0,0.00012704,2]
[353334032,1739777438506,-444.035,0.00012704,2]
[353334033,1739777438518,-530.11,0.00012704,2]
[353334034,1739777438529,-500.0,0.00012704,2]
[353334035,1739777438541,-500.0,0.00012704,2]
[353334036,1739777438553,-548.39,0.00012704,2]
[353334037,1739777438565,-500.0,0.00012787,2]
[353334038,1739777438576,-500.0,0.00012787,2]
[353334039,1739777438589,-500.0,0.00012787,2]
[353334040,1739777438600,-500.0,0.00012787,2]
[353334041,1739777438611,-500.0,0.00012787,2]
[353334042,1739777438622,-530.11,0.00012787,2]
[353334043,1739777438632,-500.0,0.00012787,2]
[353334044,1739777438644,-500.0,0.00012787,2]
[353334045,1739777438656,-500.0,0.00012869,2]
[353334046,1739777438667,-500.0,0.00012869,2]
[353334047,1739777438678,-500.0,0.00012869,2]
[353334048,1739777438690,-500.0,0.00012869,2]
[353334049,1739777438702,-500.0,0.00012869,2]
[353334050,1739777438714,-530.11,0.00012869,2]
[353334051,1739777438728,-500.0,0.00012869,2]
[353334052,1739777438739,-500.0,0.00012869,2]
[353334053,1739777438749,-500.0,0.00012869,2]
[353334054,1739777438761,-162.81220569,0.000129,2]
[353334055,1739777438771,-500.0,0.00012951,2]
[353334056,1739777438781,-500.0,0.00012951,2]
[353334057,1739777438792,-500.0,0.00012951,2]
[353334058,1739777438802,-632.9,0.00012951,2]
[353334059,1739777438812,-500.0,0.00012951,2]
[353334060,1739777438824,-530.11,0.00012951,2]
[353334061,1739777438835,-500.0,0.00012951,2]
[353334062,1739777438844,-500.0,0.00012951,2]
[353334063,1739777438856,-442.3585441,0.00012973,2]
[353334064,1739777438871,-420.74170973,0.00012973,2]
[353334065,1739777438983,-2175.35987812,0.00012973,2]
[353334071,1739777440142,-4400.23740083,0.00012973,2]
[353334072,1739777440156,-500.0,0.00013033,2]
[353334073,1739777440169,-500.0,0.00013033,2]
[353334074,1739777440184,-359.09,0.00013033,2]
[353334075,1739777440198,-500.0,0.00013033,2]
[353334076,1739777440209,-530.11,0.00013033,2]
[353334077,1739777440219,-500.0,0.00013033,2]
[353334078,1739777440230,-86.62041412,0.00013033,2]
[353334100,1739777442878,-413.37958588,0.00013033,2]
[353334101,1739777442890,-202.706,0.00013103,2]
[353334102,1739777442902,-500.0,0.00013115,2]
[353334103,1739777442915,-500.0,0.00013115,2]
[353334104,1739777442926,-500.0,0.00013115,2]
[353334105,1739777442940,-530.11,0.00013115,2]
[353334106,1739777442952,-386.73,0.00013115,2]
[353334107,1739777442965,-500.0,0.00013115,2]
[353334108,1739777442978,-500.0,0.00013131,2]
[353334109,1739777442988,-500.88910816,0.00013131,2]
[353334110,1739777442999,-500.57312837,0.00013131,2]
[353334111,1739777443009,-500.0,0.00013198,2]
[353334112,1739777443023,-500.0,0.00013198,2]
[353334113,1739777443034,-500.0,0.00013198,2]
[353334115,1739777443047,-530.11,0.00013198,2]
[353334118,1739777443058,-500.0,0.00013198,2]
[353334121,1739777443069,-500.0,0.00013246,2]
[353334123,1739777443080,-500.0,0.0001328,2]
[353334126,1739777443092,-288.46,0.0001328,2]
[353334128,1739777443102,-500.0,0.0001328,2]
[353334130,1739777443113,-530.11,0.0001328,2]
[353334132,1739777443124,-500.0,0.0001328,2]
[353334134,1739777443134,-500.0,0.00013362,2]
[353334135,1739777443145,-379.54207473,0.00013362,2]
[353334137,1739777443157,-530.11,0.00013362,2]
[353334139,1739777443169,-500.0,0.00013362,2]
[353334141,1739777443181,-190.76057223,0.00013422,2]
[353334143,1739777443192,-500.0,0.00013444,2]
[353334145,1739777443202,-530.11,0.00013444,2]
[353334146,1739777443213,-500.0,0.00013444,2]
[353334147,1739777443223,-162.81220565,0.00013487,2]
[353334148,1739777443234,-505.14,0.00013526,2]
[353334149,1739777443244,-530.11,0.00013526,2]
[353334150,1739777443255,-500.0,0.00013526,2]
[353334151,1739777443270,-500.0,0.00013531,2]
[353334152,1739777443282,-501.30219195,0.00013531,2]
[353334153,1739777443293,-152.0,0.00013553,2]
[353334154,1739777443305,-530.11,0.00013609,2]
[353334155,1739777443316,-589.65,0.00013609,2]
[353334156,1739777443327,-376.01183395,0.00013615,2]
[353334157,1739777443338,-500.0,0.00013642,2]
[353334158,1739777443350,-530.11,0.00013691,2]
[353334159,1739777443361,-153.0,0.00013699,2]
[353334160,1739777443372,-153.0,0.00013699,2]
[353334161,1739777443383,-153.0,0.00013699,2]
[353334162,1739777443394,-225.6315069,0.00013699,2]
[353334163,1739777443405,-530.11,0.00013773,2]
[353334164,1739777443416,-500.0,0.00013794,2]
[353334165,1739777443426,-530.11,0.00013855,2]
[353334166,1739777443437,-530.11,0.00013937,2]
[353334167,1739777443448,-152.0,0.00013959,2]
[353334168,1739777443459,-530.11,0.0001402,2]
[353334169,1739777443470,-530.11,0.00014102,2]